Workbook

Sheet Description
B2: Sheet color codes
B3: user input
B4: optional user input
B5: information only; do not modify
B6: 🛈 pop-up information available when cell is clicked
B7: ⓿ quick walk-through section indicators
B8: indicates updates to original workbook
B10: Summary
B11: In order to effectively evaluate the economic viability and emissions profile of each proposed H2Hub on a common basis, DOE has developed these worksheets to capture parameters associated with the hydrogen production process and of the H2Hub as a whole. The figure below provides a general layout of accounting for the H2Hubs. Clean hydrogen producers as well as hydrogen consumers may have multiple economic value streams. For example, an electrolysis-based clean hydrogen producer may provide hydrogen, but also oxygen, low-grade heat, and grid ancillary services. Applicants should provide core parameters associated with their H2Hub as well as the magnitude of expected co-products.
B28: Preferred and ambiguous units clarifications 🛈
B29: Measurement | C29: Preferred units
B30: Hydrogen | C30: kg, kg/day
B31: Ammonia | C31: m.tonne
B32: Natural gas, LPG | C32: mmBTU, HHV
B33: Coal | C33: m.tonne
B34: Biomass | C34: m.tonne
B35: Note: please provide BTU LHV and HHV content of woody biomass
B36: Diesel, gasoline, oil | C36: gal
B37: Electric energy | C37: kWh
B38: Electric power | C38: kW
B40: Distance | C40: miles
B41: Area (land) | C41: acres
B42: Volume | C42: m³
B43: Energy for thermal | C43: mmBTU, LHV
B45: Mass-based:
B46: m.tonne | C46: metric tonne (1,000 kg)
B47: MMT | C47: million metric tonnes
B48: KMT | C48: thousand metric tonnes
B50: Volume-based:
B51: Nm³ | C51: normal cubic meter (at 0°C, 1.01325 bar); used for gasses. Use m³ for incompressible liquids.
B52: SCF | C52: standard cubic foot (at 60°F, 14.73 psia); used for gasses. Use ft³ for incompressible liquids.
B53: MMCF | C53: million standard cubic feet
B54: barrel | C54: 42 gallons
B55: Note: if combustibles which may have different volumetric heat content are specified, please provide energy density (e.g. biogas BTU/SCF)
B57: Energy-based:
B58: kWh | C58: use this unit for electricity only. if combustible product is quantified, use units subscripted with .LHV or .HHV basis when using kWh
B59: .HHV | C59: energy unit suffix designating lower-heating value which applies to combustible streams
B60: .LHV | C60: energy unit suffix designating higher-heating value which applies to combustible streams

Sheet General
B1: H2HUB SUMMARY METRICS
B3: CLEAN HYDROGEN PRODUCTION
B5: ❶ Provide hydrogen production capacity, cost estimate and characteristics by pathway (e.g., electrolysis hydrogen, biomass gasification, natural gas reforming etc.). Provide on-site emissions (emissions from the facility), as well as total emissions (e.g. inclusive of upstream electricity generation emissions from local grid mix source). Provide estimate of water consumption. Please use Argonne's GREET model for life-cycle emission assessments.
B6: (The GREET 1 Series (fuel cycle) model is available at https://greet.es.anl.gov/)
B7: Hydrogen production pathway title 🛈 | F7: Average daily production [kg H₂/day] 🛈 | G7: Produuction capacity(kg/day) | H7: Expected cost in 2030 [nominal $/kg] 🛈 | J7: On-site GHG emissions¹ [kg CO₂eq/kg H₂] 🛈 | L7: Total GHG emissions² [kg CO₂eq/kg H₂] 🛈 | N7: Water use [gal/kg H₂] 🛈 | P7: Production Tax Credit incentives [$/kg] 🛈 | Q7: Production Tax Credit incentives term [years] 🛈 | R7: 1: on-site emission assumptions 🛈 | T7: 2: off-site emission assumptions 🛈
B8: Renewable electrolysis | F8: 200000 | H8: 2.5 | J8: 0 | L8: 0 | N8: 3.8 | P8: 3 | Q8: 10 | T8: Natural gas is average North-America blend. Electricity is wind-based PPA. | V8: ⟵ Example entry. (Please delete before filling out table.)
B9: Steam methane reforming with CCS | F9: 50000 | H9: 2.1 | J9: 0.5 | L9: 3 | N9: 8 | P9: 0.6 | Q9: 10 | R9: 95% CO₂ capture rate, H₂ transported 10 miles via pipeline. | V9: ⟵ Example entry.
B18: Average | H18: =IFERROR(+SUMPRODUCT($F$8:$G$17,H8:I17)/SUM($F$8:$G$17),0) -> 2.42 | J18: =IFERROR(+SUMPRODUCT($F$8:$G$17,J8:K17)/SUM($F$8:$G$17),0) -> 0.1 | L18: =IFERROR(+SUMPRODUCT($F$8:$G$17,L8:M17)/SUM($F$8:$G$17),0) -> 0.6 | N18: =IFERROR(+SUMPRODUCT($F$8:$G$17,N8:O17)/SUM($F$8:$G$17),0) -> 4.64
B19: Daily total (average) | F19: =+SUM(F8:G17) -> 250000 | H19: =+SUMPRODUCT($F$8:$G$17,H8:I17) -> 605000 | J19: =+SUMPRODUCT($F$8:$G$17,J8:K17) -> 25000 | L19: =+SUMPRODUCT($F$8:$G$17,L8:M17) -> 150000 | N19: =+SUMPRODUCT($F$8:$G$17,N8:O17) -> 1160000
B20: Annual total | F20: =+F19*365 -> 91250000 | H20: =+H19*365 -> 220825000 | J20: =+J19*365 -> 9125000 | L20: =+L19*365 -> 54750000 | N20: =+N19*365 -> 423400000
B22: CLEAN HYDROGEN SALES OR H2HUB INTERNAL USE
B24: ❷ Provide summary of clean hydrogen end uses. Note that price of hydrogen might vary depending on end use pressure, delivery distance and method.
B25: Hydrogen end-use title 🛈 | F25: Average daily use [kg H₂/day] 🛈 | G25: Produuction capacity(kg/day) | H25: Internal or market price [nominal $/kg] 🛈
B26: Heavy duty truck fueling | F26: 20000 | H26: 5 | J26: ⟵ Example entry.
B27: Ammonia production | F27: 230000 | H27: 2.2 | J27: ⟵ Example entry.
B36: Average | H36: =IFERROR(+SUMPRODUCT($F$26:$G$35,H26:I35)/SUM($F$26:$G$35),0) -> 2.424
B37: Average daily total | F37: =+SUM(F26:G35) -> 250000 | H37: =+SUMPRODUCT($F$26:$G$35,H26:I35) -> 606000
B38: Annual total | F38: =+F37*365 -> 91250000 | H38: =+H37*365 -> 221190000
B40: H2HUB CONNECTED INFRASTRUCTURE
B42: ❸ Provide infrastructure itemization and cost estimation. Provide DOE cost contribution requested and potential of other state and local incentives.
B43: Infrastructure description 🛈 | F43: Equipment Capital Cost [$] 🛈 | G43: Produuction capacity(kg/day) | H43: Applicant share of overnight capital cost [$] 🛈 | J43: DOE share of overnight capital cost [$] 🛈 | L43: Non-DOE incentives share of overnight capital cost [$] 🛈 | N43: Total overnight capital cost [$]
B44: Electrolysis production | F44: 630000000 | H44: =+F44*1.5 -> 945000000 | J44: =+H44/2 -> 472500000 | L44: 0 | N44: =+SUM(H44:M44) -> 1417500000 | P44: ⟵ Example entry.
B45: Steam methane reformer | F45: =+F9*2000 -> 100000000 | H45: =+F45*1.5 -> 150000000 | J45: =+H45/2 -> 75000000 | L45: 0 | N45: =+SUM(H45:M45) -> 225000000 | P45: ⟵ Example entry.
B46: Distribution pipeline | F46: 5000000 | H46: =+F46*2 -> 10000000 | J46: =+H46/2 -> 5000000 | L46: 0 | N46: 15000000 | P46: ⟵ Example entry.
B47: Long haul fueling infrastructure | F47: 20000000 | H47: =+F47*2 -> 40000000 | J47: =+H47/2 -> 20000000 | L47: 0 | N47: 60000000 | P47: ⟵ Example entry.
B48: 10 days of hydrogen storage | F48: =+F19/4*1000 -> 62500000 | H48: =+F48*1.5 -> 93750000 | J48: =+H48/2 -> 46875000 | L48: 0 | N48: 140625000 | P48: ⟵ Example entry.
N49: 0
N50: 0
N51: 0
N52: 0
N53: 0
B54: Total | F54: =+SUM(F44:G53) -> 817500000 | H54: =+SUM(H44:I53) -> 1238750000 | J54: =+SUM(J44:K53) -> 619375000 | L54: =+SUM(L44:M53) -> 0 | N54: =+SUM(N44:O53) -> 1858125000
B56: Specify total usable H₂ storage [kg] 🛈 | F56: 2,000,000 kg, in salt cavern, excluding cushion gas | P56: ⟵ Example entry.
B58: H2HUB TOP LEVEL FINANCIAL METRICS
B60: ❹ Provide H2Hub-level financial performance projections:
B61: Rate of return over 10 years of operation 🛈 | J61: [%]
B62: Rate of return over 30 years of operation 🛈 | J62: [%]
B63: Average annual H2Hub revenues 🛈 | J63: [$]

Sheet H2Hub TEA & LCA inputs
B1: H2HUB DETAILED INPUTS
B3: MAJOR EQUIPMENT LIST & DESCRIPTION
C5: ❶ Provide up to 10 itemized H2Hub components - e.g. electrolyzer, compressor, pipeline, ammonia plant, truck terminal, tractors, trailers etc. Also provide initial and final value of any non-depreciable items.
B7: Major equipment number: | G7: 1 | I7: 2 | K7: 3 | M7: 4 | O7: 5 | Q7: 6 | S7: 7 | U7: 8 | W7: 9 | Y7: 10
B8: Major equipment name: 🛈 | G8: =IF(ISBLANK(General!$B$44),"",General!$B$44) -> Electrolysis production | H8: =+General!$B$44 -> Electrolysis production | I8: =IF(ISBLANK(General!$B$45),"",General!$B$45) -> Steam methane reformer | J8: =+General!$B$44 -> Electrolysis production | K8: =IF(ISBLANK(General!$B$46),"",General!$B$46) -> Distribution pipeline | L8: =+General!$B$44 -> Electrolysis production | M8: =IF(ISBLANK(General!$B$47),"",General!$B$47) -> Long haul fueling infrastructure | N8: =+General!$B$44 -> Electrolysis production | O8: =IF(ISBLANK(General!$B$48),"",General!$B$48) -> 10 days of hydrogen storage | P8: =+General!$B$44 -> Electrolysis production | Q8: =IF(ISBLANK(General!$B$49),"",General!$B$49) ->  | R8: =+General!$B$44 -> Electrolysis production | S8: =IF(ISBLANK(General!$B$50),"",General!$B$50) ->  | T8: =+General!$B$44 -> Electrolysis production | U8: =IF(ISBLANK(General!$B$51),"",General!$B$51) ->  | V8: =+General!$B$44 -> Electrolysis production | W8: =IF(ISBLANK(General!$B$52),"",General!$B$52) ->  | X8: =+General!$B$44 -> Electrolysis production | Y8: =IF(ISBLANK(General!$B$53),"",General!$B$53) ->  | Z8: =+General!$B$53 -> 0
B9: Primary output of equipment 🛈 | G9: hydrogen | I9: hydrogen | K9: hydrogen | M9: freight service | O9: hydrogen
B10: Primary output units 🛈 | G10: kg | I10: kg | K10: kg | M10: s.ton-mi | O10: kg
B11: Primary output time units 🛈 | G11: day | I11: day | K11: day | M11: year
B12: Nameplate capacity 🛈 | G12: =+General!F8 -> 200000 | I12: 2000000 | K12: 250000 | M12: 10000000 | O12: 5000000
B13: Capacity units 🛈 | G13: =IF(ISBLANK(G8),"",G10&IF(ISBLANK(G11),"","/"&G11)) -> kg/day | I13: =IF(ISBLANK(I8),"",I10&IF(ISBLANK(I11),"","/"&I11)) -> kg/day | K13: =IF(ISBLANK(K8),"",K10&IF(ISBLANK(K11),"","/"&K11)) -> kg/day | M13: =IF(ISBLANK(M8),"",M10&IF(ISBLANK(M11),"","/"&M11)) -> s.ton-mi/year | O13: =IF(ISBLANK(O8),"",O10&IF(ISBLANK(O11),"","/"&O11)) -> kg | Q13: =IF(ISBLANK(Q8),"",Q10&IF(ISBLANK(Q11),"","/"&Q11)) ->  | S13: =IF(ISBLANK(S8),"",S10&IF(ISBLANK(S11),"","/"&S11)) ->  | U13: =IF(ISBLANK(U8),"",U10&IF(ISBLANK(U11),"","/"&U11)) ->  | W13: =IF(ISBLANK(W8),"",W10&IF(ISBLANK(W11),"","/"&W11)) ->  | Y13: =IF(ISBLANK(Y8),"",Y10&IF(ISBLANK(Y11),"","/"&Y11)) -> 
B14: Equipment CapEx [$] 🛈 | G14: =+General!$F$44 -> 630000000 | I14: =+General!$F$45 -> 100000000 | K14: =+General!$F$46 -> 5000000 | M14: =+General!$F$47 -> 20000000 | O14: =+General!$F$48 -> 62500000 | Q14: =+General!$F$49 -> 0 | S14: =+General!$F$50 -> 0 | U14: =+General!$F$51 -> 0 | W14: =+General!$F$52 -> 0 | Y14: =+General!$F$53 -> 0
B15: Installation & construction cost [$] 🛈 | G15: =+General!$N$44 -General!$F$44 -> 787500000 | I15: =+General!$N$45 -General!$F$45 -> 125000000 | K15: =+General!$N$46 -General!$F$46 -> 10000000 | M15: =+General!$N$47 -General!$F$47 -> 40000000 | O15: =+General!$N$48 -General!$F$48 -> 78125000 | Q15: =+General!$N$49 -General!$F$49 -> 0 | S15: =+General!$N$50 -General!$F$50 -> 0 | U15: =+General!$N$51 -General!$F$51 -> 0 | W15: =+General!$N$52 -General!$F$52 -> 0 | Y15: =+General!$N$53 -General!$F$53 -> 0
B16: Non-Energy FixOpEx [% of overnight CapEx]🛈 | G16: 0.05 | I16: 0.015 | K16: 0.015 | M16: 0.05 | O16: 0.02
B17: Non-Energy VaOpEx [$/unit output] 🛈 | G17: 0.02 | I17: 0 | K17: 0 | M17: 0.01 | O17: 0
B18: Construction period [months] | G18: 36 | I18: 36 | K18: 60 | M18: 0 | O18: 24
B19: Useful equipment life [y] | G19: 30 | I19: 50 | K19: 50 | M19: 10 | O19: 50
B20: Time between major refurbishments [y] 🛈 | G20: 7 | I20: 5 | K20: 0 | M20: 0 | O20: 5
B21: Refurbishment cost % of overnight CapEx 🛈 | G21: 0.15 | I21: 0.01 | K21: 0 | M21: 0 | O21: 0.01
B22: Description, specifications, links & references 🛈 | G22: See application page ### for system details. | I22: See application page ### for system details. | K22: 10 miles, 20 inch, see application page ### | M22: 100 fuel cell tractors, see application page ### | O22: salt cavern, 2000 psia, see application page ###
B23: Depreciation type 🛈 | G23: MACRS | I23: MACRS | K23: Straight-line | M23: Straight-line | O23: Straight-line
B24: Depreciation period 🛈 | G24: 7 | I24: 30 | K24: 30 | M24: 10 | O24: 30
H25: ↑ Example entries ↑ ↑ ↑ ↑
B26: Non-depreciable items value 🛈 | I26: 10000000 | K26: ⟵ Example entry, note: this includes salt cavern and land non-depreciable cost
B27: Non-depreciable items value at end of analysis period 🛈 | I27: 20000000 | K27: ⟵ Example entry
B29: H2HUB PRIMARY COMMODITY PRODUCT
C31: ❷ Fill out primary hub commodity first. This will streamline subsequent inputs.
C32: Commodity name 🛈 | E32: Retail units 🛈 | G32: Time units 🛈 | I32: Nameplate capacity 🛈 | K32: Specified nameplate capacity
C33: ammonia | E33: m.tonne | G33: day | I33: 3000 | K33: =+TEXT(I33,"#,##0")&" "&IF(E33="Other",E34,E33)&"/"&G33 -> 3,000 m.tonne/day | M33: ⟵ Example entry (Please delete before filling out table.)
C36: ❸ Fill out annual sales projection and price for primary hub product. Please factor in any capacity factors, start-up ramp rates, maintenance down-time allowances etc. In absence of specific price data, first year cost and escalation can be used.
C37: Year | D37: ="Estimated "&C33&" sales ["&IF(E33="Other",E34,E33)&"/y]" -> Estimated ammonia sales [m.tonne/y] | F37: ="Forecast price [nom. $/"&IF(E33="Other",E34,E33)&"]" -> Forecast price [nom. $/m.tonne]
C38: 2025 | D38: =+$I$33*365*0.8*0.5 -> 438000 | F38: 1000
C39: =+C38+1 -> 2026 | D39: =+$I$33*365*0.8*0.75 -> 657000 | F39: =+F38*1.03 -> 1030
C40: =+C39+1 -> 2027 | D40: =+$I$33*365*0.8 -> 876000 | F40: =+F39*1.03 -> 1060.9
C41: 2028 | D41: 876000 | F41: 1092.727
C42: 2029 | D42: 876000 | F42: 1125.50881
C43: 2030 | D43: 876000 | F43: 1159.274074
C44: 2031 | D44: 876000 | F44: 1194.052297
C45: 2032 | D45: 876000 | F45: 1229.873865
C46: 2033 | D46: 876000 | F46: 1266.770081
C47: 2034 | D47: 876000 | F47: 1304.773184
C48: 2035 | D48: 876000 | F48: 1343.916379
C49: 2036 | D49: 876000 | F49: 1384.233871 | H49: 2036-2050: optional projection
C50: 2037 | D50: 876000 | F50: 1425.760887
C51: 2038 | D51: 876000 | F51: 1468.533713
C52: 2039 | D52: 876000 | F52: 1512.589725
C53: 2040 | D53: 876000 | F53: 1557.967417
C54: 2041 | D54: 876000 | F54: 1604.706439
C55: 2042 | D55: 876000 | F55: 1652.847632
C56: 2043 | D56: 876000 | F56: 1702.433061
C57: 2044 | D57: 876000 | F57: 1753.506053
C58: 2045 | D58: 876000 | F58: 1806.111235
C59: 2046 | D59: 876000 | F59: 1860.294572
C60: 2047 | D60: 876000 | F60: 1916.103409
C61: 2048 | D61: 876000 | F61: 1973.586511
C62: 2049 | D62: 876000 | F62: 2032.794106
C63: 2050 | D63: 876000 | F63: 2093.77793
E64: ↑ Example entries ↑
B66: H2HUB MAJOR CO-PRODUCT VALUE STREAMS
C68: ❹ Provide up to 10 revenue-generating co-products. E.g., if the H2Hub produces hydrogen as primary output in units of "kg", and it can also produce 0.5 liters of ammonia for each kilogram of hydrogen, specify that: co-product name = "ammonia", co-product units = "L", co-product rate = 0.5. Also specify the price forecast for the co-product in nominal $.
C69: Revenue-generating co-products
C70: Co-product # | E70: 1 | G70: 2 | I70: 3 | K70: 4 | M70: 5 | O70: 6 | Q70: 7 | S70: 8 | U70: 9 | W70: 10
C71: Co-product name 🛈 | E71: H₂ fuel | G71: oxygen
C72: Co-product units 🛈 | E72: kg | G72: kg
C73: Production rate 🛈 | E73: =+M12/365/I33 -> 9.132420091 | G73: 200
C74: Verify specified co-product rate 🛈 | E74: =IF(ISBLANK(E71),"",E73&" "&E72&" "&E71&" /"&IF(E33="Other",$E$34,$E$33)&" "&$C$33) -> 9.1324200913242 kg H₂ fuel /m.tonne ammonia | G74: =IF(ISBLANK(G71),"",G73&" "&G72&" "&G71&" /"&IF(I33="Other",$E$34,$E$33)&" "&$C$33) -> 200 kg oxygen /m.tonne ammonia | I74: =IF(ISBLANK(I71),"",I73&" "&I72&" "&I71&" /"&IF(G33="Other",$E$34,$E$33)&" "&$C$33) ->  | K74: =IF(ISBLANK(K71),"",K73&" "&K72&" "&K71&" /"&IF(K33="Other",$E$34,$E$33)&" "&$C$33) ->  | M74: =IF(ISBLANK(M71),"",M73&" "&M72&" "&M71&" /"&IF(M33="Other",$E$34,$E$33)&" "&$C$33) ->  | O74: =IF(ISBLANK(O71),"",O73&" "&O72&" "&O71&" /"&IF(O33="Other",$E$34,$E$33)&" "&$C$33) ->  | Q74: =IF(ISBLANK(Q71),"",Q73&" "&Q72&" "&Q71&" /"&IF(Q33="Other",$E$34,$E$33)&" "&$C$33) ->  | S74: =IF(ISBLANK(S71),"",S73&" "&S72&" "&S71&" /"&IF(S33="Other",$E$34,$E$33)&" "&$C$33) ->  | U74: =IF(ISBLANK(U71),"",U73&" "&U72&" "&U71&" /"&IF(U33="Other",$E$34,$E$33)&" "&$C$33) ->  | W74: =IF(ISBLANK(W71),"",W73&" "&W72&" "&W71&" /"&IF(W33="Other",$E$34,$E$33)&" "&$C$33) -> 
C76: Price in year 🛈 | E76: =+IF(ISBLANK(E71),"","nom.$/"&E72) -> nom.$/kg | G76: =+IF(ISBLANK(G71),"","nom.$/"&G72) -> nom.$/kg | I76: =+IF(ISBLANK(I71),"","nom.$/"&I72) ->  | K76: =+IF(ISBLANK(K71),"","nom.$/"&K72) ->  | M76: =+IF(ISBLANK(M71),"","nom.$/"&M72) ->  | O76: =+IF(ISBLANK(O71),"","nom.$/"&O72) ->  | Q76: =+IF(ISBLANK(Q71),"","nom.$/"&Q72) ->  | S76: =+IF(ISBLANK(S71),"","nom.$/"&S72) ->  | U76: =+IF(ISBLANK(U71),"","nom.$/"&U72) ->  | W76: =+IF(ISBLANK(W71),"","nom.$/"&W72) -> 
D77: 2025 | E77: 5 | G77: 0.01
D78: =+D77+1 -> 2026 | E78: =+E77*1.019 -> 5.095 | G78: =+G77*1.019 -> 0.01019
D79: =+D78+1 -> 2027 | E79: =+E78*1.019 -> 5.191805 | G79: =+G78*1.019 -> 0.01038361
D80: 2028 | E80: 5.290449295 | G80: 0.01058089859
D81: 2029 | E81: 5.390967832 | G81: 0.01078193566
D82: 2030 | E82: 5.49339622 | G82: 0.01098679244
D83: 2031 | E83: 5.597770749 | G83: 0.0111955415
D84: 2032 | E84: 5.704128393 | G84: 0.01140825679
D85: 2033 | E85: 5.812506832 | G85: 0.01162501366
D86: 2034 | E86: 5.922944462 | G86: 0.01184588892
D87: 2035 | E87: 6.035480407 | G87: 0.01207096081
C88: 2036 to | D88: 2036 | E88: 6.150154535 | G88: 0.01230030907
C89: 2050 are | D89: 2037 | E89: 6.267007471 | G89: 0.01253401494
C90: optional | D90: 2038 | E90: 6.386080613 | G90: 0.01277216123
D91: 2039 | E91: 6.507416144 | G91: 0.01301483229
D92: 2040 | E92: 6.631057051 | G92: 0.0132621141
D93: 2041 | E93: 6.757047135 | G93: 0.01351409427
D94: 2042 | E94: 6.885431031 | G94: 0.01377086206
D95: 2043 | E95: 7.01625422 | G95: 0.01403250844
D96: 2044 | E96: 7.14956305 | G96: 0.0142991261
D97: 2045 | E97: 7.285404748 | G97: 0.0145708095
D98: 2046 | E98: 7.423827439 | G98: 0.01484765488
D99: 2047 | E99: 7.56488016 | G99: 0.01512976032
D100: 2048 | E100: 7.708612883 | G100: 0.01541722577
D101: 2049 | E101: 7.855076528 | G101: 0.01571015306
D102: 2050 | E102: 8.004322982 | G102: 0.01600864596
F103: ↑ Example entries ↑
C104: ❺ Provide up to 10 expense-incurring waste streams. E.g., if the H2Hub produces hydrogen as primary output in units of "kg", and it can also produce 2.7 liters of waste water for each kilogram of hydrogen, specify that: waste stream name = "waste water", waste stream units = "gal", generation rate = 2.7. Also specify the expense forecast for the waste stream in nominal $ for 2025. Specify nominal cost escalation rate. In absence of specific escalation, please use 1.9% based on general inflation.
C105: Waste streams
C106: Stream # | E106: 1 | G106: 2 | I106: 3 | K106: 4 | M106: 5 | O106: 6 | Q106: 7 | S106: 8 | U106: 9 | W106: 10
C107: Waste stream name 🛈 | E107: waste water | G107: landfill solids
C108: Waste stream units 🛈 | E108: gal | G108: kg
C109: Generation rate 🛈 | E109: 2.7 | G109: 0.001
C110: Expense in 2025 🛈 | E110: 0.004 | G110: 0.001
C111: Escalation rate 🛈 | E111: 0.019 | G111: 0.019
C112: Verify specified waste stream rate 🛈 | E112: =IF(ISBLANK(E107),"",E109&" "&E108&" "&E107&" /"&IF(E69="Other",$E$34,$E$33)&" "&$C$33) -> 2.7 gal waste water /m.tonne ammonia | G112: =IF(ISBLANK(G107),"",G109&" "&G108&" "&G107&" /"&IF(G69="Other",$E$34,$E$33)&" "&$C$33) -> 0.001 kg landfill solids /m.tonne ammonia | I112: =IF(ISBLANK(I107),"",I109&" "&I108&" "&I107&" /"&IF(I69="Other",$E$34,$E$33)&" "&$C$33) ->  | K112: =IF(ISBLANK(K107),"",K109&" "&K108&" "&K107&" /"&IF(K69="Other",$E$34,$E$33)&" "&$C$33) ->  | M112: =IF(ISBLANK(M107),"",M109&" "&M108&" "&M107&" /"&IF(M69="Other",$E$34,$E$33)&" "&$C$33) ->  | O112: =IF(ISBLANK(O107),"",O109&" "&O108&" "&O107&" /"&IF(O69="Other",$E$34,$E$33)&" "&$C$33) ->  | Q112: =IF(ISBLANK(Q107),"",Q109&" "&Q108&" "&Q107&" /"&IF(Q69="Other",$E$34,$E$33)&" "&$C$33) ->  | S112: =IF(ISBLANK(S107),"",S109&" "&S108&" "&S107&" /"&IF(S69="Other",$E$34,$E$33)&" "&$C$33) ->  | U112: =IF(ISBLANK(U107),"",U109&" "&U108&" "&U107&" /"&IF(U69="Other",$E$34,$E$33)&" "&$C$33) ->  | W112: =IF(ISBLANK(W107),"",W109&" "&W108&" "&W107&" /"&IF(W69="Other",$E$34,$E$33)&" "&$C$33) -> 
C113: Verify specified waste steam expense 🛈 | E113: =IF(ISBLANK(E107),"","$"&E110&" /"&E108&" "&E107) -> $0.004 /gal waste water | G113: =IF(ISBLANK(G107),"","$"&G110&" /"&G108&" "&G107) -> $0.001 /kg landfill solids | I113: =IF(ISBLANK(I107),"","$"&I110&" /"&I108&" "&I107) ->  | K113: =IF(ISBLANK(K107),"","$"&K110&" /"&K108&" "&K107) ->  | M113: =IF(ISBLANK(M107),"","$"&M110&" /"&M108&" "&M107) ->  | O113: =IF(ISBLANK(O107),"","$"&O110&" /"&O108&" "&O107) ->  | Q113: =IF(ISBLANK(Q107),"","$"&Q110&" /"&Q108&" "&Q107) ->  | S113: =IF(ISBLANK(S107),"","$"&S110&" /"&S108&" "&S107) ->  | U113: =IF(ISBLANK(U107),"","$"&U110&" /"&U108&" "&U107) ->  | W113: =IF(ISBLANK(W107),"","$"&W110&" /"&W108&" "&W107) -> 
F114: ↑ Example entries ↑
B116: H2HUB ENERGY / FEEDSTOCK INPUTS
C118: ❻ Provide up to 10 energy or non-energy feedstock specifications for H2hub inputs. Those should be reported on per-unit of primary hub output. For example, if a hub comprises solely of an electrolyzer, it would require water and electricity. Those may be specified as Feedstock name = water, feedstock units = gal, feedstock use rate = 5. Feedstock name 2 = electricity, feedstock 2 units = kWh, feedstock use rate = 54. If the hub has other non-energy inputs that are known and substantive please describe as well e.g. catalysts, chemical feed etc. Non-energy hub inputs can be specified with a nominal 2025 cost estimate and assumed escalation rate. Escalation rate of 1.9% should be used based on a default inflation rate unless a different rate is justifiable. Energy feedstocks should be based on AEO 2022 Reference case for regionalized costs. If alternative costs are provided, please provide a justification (e.g. long term power purchase agreements). Note: example entries (yellow cells only) below should be deleted before filling out (e.g. If all electricity needs are met with on-site power generation, delete electricity example entry)
C119: Energy and feedstock
C120: Feedstock # | E120: 1 | G120: 2 | I120: 3 | K120: 4 | M120: 5 | O120: 6 | Q120: 7 | S120: 8 | U120: 9 | W120: 10
C121: Feedstock name 🛈 | E121: electricity | G121: natural gas | I121: water
C122: Feedstock units 🛈 | E122: kWh | G122: mmBTU.LHV | I122: gal
C123: Feedstock rate 🛈 | E123: 300 | G123: 10 | I123: 500
C124: Feedstock type 🛈 | E124: Energy | G124: Energy | I124: Non-energy
C125: Expense in 2025 🛈 | I125: 0.002
C126: Escalation rate 🛈 | I126: 0.019
C127: Verify specified feedstock rate 🛈 | E127: =IF(ISBLANK(E121),"",E123&" "&E122&" "&E121&" /"&IF(E108="Other",$E$34,$E$33)&" "&$C$33) -> 300 kWh electricity /m.tonne ammonia | G127: =IF(ISBLANK(G121),"",G123&" "&G122&" "&G121&" /"&IF(G108="Other",$E$34,$E$33)&" "&$C$33) -> 10 mmBTU.LHV natural gas /m.tonne ammonia | I127: =IF(ISBLANK(I121),"",I123&" "&I122&" "&I121&" /"&IF(I108="Other",$E$34,$E$33)&" "&$C$33) -> 500 gal water /m.tonne ammonia | K127: =IF(ISBLANK(K121),"",K123&" "&K122&" "&K121&" /"&IF(K108="Other",$E$34,$E$33)&" "&$C$33) ->  | M127: =IF(ISBLANK(M121),"",M123&" "&M122&" "&M121&" /"&IF(M108="Other",$E$34,$E$33)&" "&$C$33) ->  | O127: =IF(ISBLANK(O121),"",O123&" "&O122&" "&O121&" /"&IF(O108="Other",$E$34,$E$33)&" "&$C$33) ->  | Q127: =IF(ISBLANK(Q121),"",Q123&" "&Q122&" "&Q121&" /"&IF(Q108="Other",$E$34,$E$33)&" "&$C$33) ->  | S127: =IF(ISBLANK(S121),"",S123&" "&S122&" "&S121&" /"&IF(S108="Other",$E$34,$E$33)&" "&$C$33) ->  | U127: =IF(ISBLANK(U121),"",U123&" "&U122&" "&U121&" /"&IF(U108="Other",$E$34,$E$33)&" "&$C$33) ->  | W127: =IF(ISBLANK(W121),"",W123&" "&W122&" "&W121&" /"&IF(W108="Other",$E$34,$E$33)&" "&$C$33) -> 
C128: Verify specified 2025 feedstock cost 🛈 | E128: =IF(ISBLANK(E121)*ISBLANK(E125),"","$"&E125&" /"&E122&" "&E121) -> $ /kWh electricity | G128: =IF(ISBLANK(G121),"","$"&G125&" /"&G122&" "&G121) -> $ /mmBTU.LHV natural gas | I128: =IF(ISBLANK(I121),"","$"&I125&" /"&I122&" "&I121) -> $0.002 /gal water | K128: =IF(ISBLANK(K121),"","$"&K125&" /"&K122&" "&K121) ->  | M128: =IF(ISBLANK(M121),"","$"&M125&" /"&M122&" "&M121) ->  | O128: =IF(ISBLANK(O121),"","$"&O125&" /"&O122&" "&O121) ->  | Q128: =IF(ISBLANK(Q121),"","$"&Q125&" /"&Q122&" "&Q121) ->  | S128: =IF(ISBLANK(S121),"","$"&S125&" /"&S122&" "&S121) ->  | U128: =IF(ISBLANK(U121),"","$"&U125&" /"&U122&" "&U121) ->  | W128: =IF(ISBLANK(W121),"","$"&W125&" /"&W122&" "&W121) -> 
C130: Cost in year 🛈 | E130: =+IF(ISBLANK(E121),"","nom.$/"&E122) -> nom.$/kWh | G130: =+IF(ISBLANK(G121),"","nom.$/"&G122) -> nom.$/mmBTU.LHV | I130: =+IF(ISBLANK(I121),"","nom.$/"&I122) -> nom.$/gal | K130: =+IF(ISBLANK(K121),"","nom.$/"&K122) ->  | M130: =+IF(ISBLANK(M121),"","nom.$/"&M122) ->  | O130: =+IF(ISBLANK(O121),"","nom.$/"&O122) ->  | Q130: =+IF(ISBLANK(Q121),"","nom.$/"&Q122) ->  | S130: =+IF(ISBLANK(S121),"","nom.$/"&S122) ->  | U130: =+IF(ISBLANK(U121),"","nom.$/"&U122) ->  | W130: =+IF(ISBLANK(W121),"","nom.$/"&W122) -> 
D131: 2025 | E131: 0.12 | G131: 5
D132: =+D131+1 -> 2026 | E132: =+E131*1.019 -> 0.12228 | G132: =+G131*1.019 -> 5.095
D133: =+D132+1 -> 2027 | E133: =+E132*1.019 -> 0.12460332 | G133: =+G132*1.019 -> 5.191805
D134: 2028 | E134: 0.1269707831 | G134: =+G133*1.019 -> 5.290449295
D135: 2029 | E135: 0.129383228 | G135: 5.390967832
D136: 2030 | E136: 0.1318415093 | G136: 5.49339622
D137: 2031 | E137: 0.134346498 | G137: 5.597770749
D138: 2032 | E138: 0.1368990814 | G138: 5.704128393
D139: 2033 | E139: 0.139500164 | G139: 5.812506832
D140: 2034 | E140: 0.1421506671 | G140: 5.922944462
D141: 2035 | E141: 0.1448515298 | G141: 6.035480407
C142: 2036 to | D142: 2036 | E142: 0.1476037088 | G142: 6.150154535
C143: 2050 are | D143: 2037 | E143: 0.1504081793 | G143: 6.267007471
C144: optional | D144: 2038 | E144: 0.1532659347 | G144: 6.386080613
D145: 2039 | E145: 0.1561779875 | G145: 6.507416144
D146: 2040 | E146: 0.1591453692 | G146: 6.631057051
D147: 2041 | E147: 0.1621691312 | G147: 6.757047135
D148: 2042 | E148: 0.1652503447 | G148: 6.885431031
D149: 2043 | E149: 0.1683901013 | G149: 7.01625422
D150: 2044 | E150: 0.1715895132 | G150: =+G149*1.019 -> 7.14956305
D151: 2045 | E151: 0.174849714 | G151: 7.285404748
D152: 2046 | E152: 0.1781718585 | G152: 7.423827439
D153: 2047 | E153: 0.1815571238 | G153: 7.56488016
D154: 2048 | E154: 0.1850067092 | G154: 7.708612883
D155: 2049 | E155: 0.1885218367 | G155: 7.855076528
D156: 2050 | E156: 0.1921037516 | G156: 8.004322982
F157: ↑ Example entries ↑ ↑
B159: H2HUB HYDROGEN-SPECIFIC ENERGY / FEEDSTOCK INPUTS (FOR H₂ LCA)
C161: ❼ Provide up to 10 energy or feedstock specifications into the hydrogen production portion of the H2Hub. Those should be reported on per kilogram of hydrogen production. For example, if hydrogen production comprises solely of an electrolyzer, it would require water and electricity. Those may be specified as Feedstock name = water, feedstock units = gal, feedstock use rate = 5. Feedstock name 2 = electricity, feedstock 2 units = kWh, feedstock use rate = 54.
C162: Energy and feedstock
C163: Feedstock # | E163: 1 | G163: 2 | I163: 3 | K163: 4 | M163: 5 | O163: 6 | Q163: 7 | S163: 8 | U163: 9 | W163: 10
C164: Feedstock name 🛈 | E164: electricity | G164: natural gas | I164: water
C165: Feedstock units 🛈 | E165: kWh | G165: mmBTU.LHV | I165: gal
C166: Feedstock rate 🛈 | E166: 36.8 | G166: 0.056 | I166: 2.38
C167: Verify specified feedstock rate 🛈 | E167: =IF(ISBLANK(E164),"",E166&" "&E165&" "&E164&" /kg H₂") -> 36.8 kWh electricity /kg H₂ | G167: =IF(ISBLANK(G164),"",G166&" "&G165&" "&G164&" /kg H₂") -> 0.056 mmBTU.LHV natural gas /kg H₂ | I167: =IF(ISBLANK(I164),"",I166&" "&I165&" "&I164&" /kg H₂") -> 2.38 gal water /kg H₂ | K167: =IF(ISBLANK(K164),"",K166&" "&K165&" "&K164&" /"&IF(K122="Other",$E$34,$E$33)&" "&$C$33) ->  | M167: =IF(ISBLANK(M164),"",M166&" "&M165&" "&M164&" /"&IF(M122="Other",$E$34,$E$33)&" "&$C$33) ->  | O167: =IF(ISBLANK(O164),"",O166&" "&O165&" "&O164&" /"&IF(O122="Other",$E$34,$E$33)&" "&$C$33) ->  | Q167: =IF(ISBLANK(Q164),"",Q166&" "&Q165&" "&Q164&" /"&IF(Q122="Other",$E$34,$E$33)&" "&$C$33) ->  | S167: =IF(ISBLANK(S164),"",S166&" "&S165&" "&S164&" /"&IF(S122="Other",$E$34,$E$33)&" "&$C$33) ->  | U167: =IF(ISBLANK(U164),"",U166&" "&U165&" "&U164&" /"&IF(U122="Other",$E$34,$E$33)&" "&$C$33) ->  | W167: =IF(ISBLANK(W164),"",W166&" "&W165&" "&W164&" /"&IF(W122="Other",$E$34,$E$33)&" "&$C$33) -> 
F168: ↑ Example entries ↑ ↑
B170: H2HUB FINANCING INFORMATION
C172: ❽ Describe the capital structure for the hub as well as provide an outlook for any other capital or annual incentives from non-federal sources.
C173: Debt to equity ratio of financing 🛈
C174: Debt type 🛈
C175: Loan term [years] 🛈
C176: Interest rate [%] 🛈
C177: Return on equity [%] 🛈
C178: Income tax rate [%] 🛈
C179: Working capital (cash on hand) [months of OpEx] 🛈
C180: Depreciation type 🛈
C181: Depreciation period [years] 🛈
C183: Other non-BIL incentives
C184: Up-front capital incentives 🛈 | H184: =+General!L54 -> 0
C185: Annual incentives [$/year] 🛈
C186: Annual incentives term [years] 🛈
C187: Production Tax Credit incentives [$/year] 🛈 | H187: See general tab
C188: Production Tax Credit incentives term [years] 🛈 | H188: See general tab
C189: Note: if multiple sources of annual or PTC incentives are available. Please provide them separately along with the duration for which those incentives may be available.

Sheet Lists (hidden)
A1: Basis | B1: Units | D1: Units/time
A2: mass | B2: kg | D2: year
A3: mass | B3: m.tonne | D3: day
A4: mass | B4: MMT | D4: hour
A5: mass | B5: KMT | D5: min
A6: weight | B6: lb | D6: sec
A7: weight | B7: s.ton
A8: weight | B8: l.ton
A9: vol | B9: gal
A10: vol | B10: Nm³
A11: vol | B11: L
A12: vol | B12: m³
A13: vol | B13: SCF
A14: vol | B14: MMCF
A15: vol | B15: CFM
A16: vol | B16: barrel
A17: energy | B17: mmBTU
A18: energy | B18: mmBTU.LHV
A19: energy | B19: mmBTU.HHV
A20: energy | B20: MJ.LHV
A21: energy | B21: MJ.HHV
A22: energy | B22: GJ.LHV
A23: energy | B23: GJ.HHV
A24: energy | B24: kWh
A25: energy | B25: kWh.LHV
A26: energy | B26: kWh.HHV
A27: energy | B27: MWh
A28: transport | B28: s.ton-mi
A29: transport | B29: mi
B30: other
